bitfinex-derivatives/quotes_BTCF0:USTF0_20250724
["timestamp","ask_amount","ask_price","bid_price","bid_amount"]
[1753362784305,1.80908009,118730.0,118720.0,0.2163966]
[1753362784611,1.78915753,118730.0,118720.0,0.2163966]
[1753362785496,1.78915753,118730.0,118720.0,0.2860266]
[1753362785696,1.42835753,118730.0,118720.0,0.2860266]
[1753362786115,1.44818062,118730.0,118720.0,0.2860266]
[1753362786402,0.69113822,118730.0,118720.0,0.2860266]
[1753362786592,0.69113822,118730.0,118720.0,1.02378652]
[1753362786593,0.56118539,118730.0,118720.0,1.02378652]
[1753362786797,0.353,118730.0,118720.0,0.66547139]
[1753362787203,0.87967743,118730.0,118720.0,0.66547139]
[1753362787403,0.1713623,118730.0,118720.0,0.66547139]
[1753362787604,0.84967743,118730.0,118720.0,0.66547139]
[1753362788200,1.43815743,118730.0,118720.0,0.66547139]
[1753362789009,1.1098424,118730.0,118720.0,0.7259344]
[1753362789211,1.46815753,118730.0,118720.0,0.7259344]
[1753362791608,1.13815753,118730.0,118720.0,0.7259344]
[1753362791816,1.43815753,118730.0,118720.0,0.7259344]
[1753362792015,1.43815753,118730.0,118720.0,0.73430464]
[1753362792316,1.0798424,118730.0,118720.0,0.73430464]
[1753362792517,1.43815753,118730.0,118720.0,0.73430464]
[1753362798623,1.26979513,118730.0,118720.0,0.67384163]
[1753362798818,1.43815753,118730.0,118720.0,0.67384163]
[1753362802719,1.26979513,118730.0,118720.0,0.67384163]
[1753362803019,1.43815753,118730.0,118720.0,0.67384163]
[1753362804324,0.91148,118730.0,118720.0,0.67384163]
[1753362804524,0.36131513,118730.0,118720.0,0.67384163]
[1753362804720,0.003,118730.0,118720.0,0.67384163]
[1753362804921,0.003,118730.0,118720.0,1.54061276]
[1753362805123,0.59479839,118750.0,118740.0,0.2871882]
[1753362805324,1.17468326,118750.0,118740.0,0.6479882]
[1753362805530,1.36466439,118750.0,118740.0,0.6479882]
[1753362806228,1.00634926,118750.0,118740.0,0.6479882]
[1753362806425,0.002,118750.0,118740.0,0.6479882]
[1753362806728,0.94316,118750.0,118740.0,1.0667595]
[1753362807329,0.94316,118750.0,118740.0,0.70844437]
[1753362807530,0.94316,118750.0,118740.0,0.6479882]
[1753362807732,1.30147513,118750.0,118740.0,0.6479882]
[1753362808229,1.29947513,118750.0,118740.0,0.6479882]
[1753362808732,1.13754148,118750.0,118740.0,0.6479882]
[1753362808932,1.48754148,118750.0,118740.0,0.6489182]
[1753362809130,1.48454148,118750.0,118740.0,0.6499182]
[1753362811433,0.95789235,118750.0,118740.0,0.6499182]
[1753362811734,1.31620748,118750.0,118740.0,0.6499182]
[1753362812833,1.29647513,118750.0,118740.0,0.6499182]
[1753362813331,1.46480913,118750.0,118740.0,0.6499182]
[1753362817238,0.93816,118750.0,118740.0,0.6499182]
[1753362817433,1.29647513,118750.0,118740.0,0.6499182]
[1753362817837,0.93816,118750.0,118740.0,0.6499182]
[1753362818136,1.26647513,118750.0,118740.0,0.6499182]
[1753362818341,0.94647513,118750.0,118740.0,0.6499182]
[1753362818533,1.30647513,118750.0,118740.0,0.6499182]
[1753362819129,0.94647513,118750.0,118740.0,0.71037437]
[1753362819339,1.31647513,118750.0,118740.0,0.71037437]
[1753362819634,0.63816,118750.0,118740.0,0.6499182]
[1753362819939,1.44480913,118750.0,118740.0,0.71037437]
[1753362820240,1.44480913,118750.0,118740.0,0.6499182]
[1753362820538,1.27647513,118750.0,118740.0,0.71037437]
[1753362820737,0.91816,118750.0,118740.0,0.71037437]
[1753362820937,1.26647513,118750.0,118740.0,0.71037437]
[1753362821438,1.26647513,118750.0,118740.0,0.6499182]
[1753362822135,0.90816,118750.0,118740.0,0.6499182]
[1753362822340,1.26647513,118750.0,118740.0,0.6499182]
[1753362824234,0.94647513,118750.0,118740.0,0.71037437]
[1753362824441,0.40831513,118750.0,118740.0,0.6499182]
[1753362824642,0.88743273,118770.0,118760.0,0.2657798]
[1753362824836,1.87485319,118770.0,118760.0,0.2881098]
[1753362825041,2.00108698,118770.0,118760.0,0.2881098]
[1753362825242,1.64028698,118770.0,118760.0,0.2881098]
[1753362825843,1.62266652,118770.0,118760.0,0.2881098]
[1753362826742,1.62266652,118770.0,118760.0,0.29635598]
[1753362827842,1.62266652,118770.0,118760.0,0.2881098]
[1753362828040,1.62266652,118770.0,118760.0,0.2021398]
[1753362828243,1.62266652,118770.0,118760.0,0.2163798]
[1753362828444,1.62266652,118770.0,118760.0,0.2329898]
[1753362828744,1.62266652,118770.0,118760.0,0.2881098]
[1753362829647,1.62266652,118770.0,118760.0,0.29673656]
[1753362829844,1.62266652,118770.0,118760.0,0.2881098]
[1753362830946,1.62266652,118770.0,118760.0,0.29650749]
[1753362831250,1.62266652,118770.0,118760.0,0.2881098]
[1753362831644,1.62266652,118770.0,118760.0,0.2329898]
[1753362837747,1.26435139,118770.0,118760.0,0.2329898]
[1753362838046,1.28397886,118770.0,118760.0,0.2888398]
[1753362838249,1.64229399,118770.0,118760.0,0.2888398]
[1753362840848,1.64229399,118770.0,118760.0,0.2066698]
[1753362841055,1.64229399,118770.0,118760.0,0.1924298]
[1753362841352,1.62266652,118770.0,118760.0,0.1924298]
[1753362841647,1.62266652,118770.0,118760.0,0.02411]
[1753362841850,0.1683198,118760.0,118750.0,0.75505217]
[1753362842154,0.168334,118750.0,118740.0,0.6104519]
[1753362842349,1.45416913,118750.0,118740.0,0.6381586]
[1753362842650,1.94072992,118750.0,118740.0,0.06045617]
[1753362842857,1.94072992,118750.0,118740.0,0.1683481]
[1753362843156,0.1683481,118740.0,118730.0,0.27090405]
[1753362843350,0.5283481,118740.0,118730.0,0.29575405]
[1753362843551,0.88666323,118740.0,118730.0,0.29575405]
[1753362845056,0.88666323,118740.0,118730.0,0.29775405]
[1753362845955,0.88666323,118740.0,118730.0,0.30075405]
[1753362846156,0.88666323,118740.0,118730.0,0.31029405]
[1753362846478,0.88666323,118740.0,118730.0,0.02985]
[1753362846765,1.60068366,118740.0,118730.0,0.1733623]
[1753362847655,1.60068366,118740.0,118730.0,0.1982123]
[1753362847865,1.60068366,118740.0,118730.0,0.1962123]
[1753362848164,1.60072366,118740.0,118730.0,0.1972123]
[1753362848662,1.60072366,118740.0,118730.0,0.2115923]
[1753362848863,1.60072366,118740.0,118730.0,0.2085923]
[1753362849063,1.60072366,118740.0,118730.0,0.2095923]
[1753362849565,1.60072366,118740.0,118730.0,0.2670623]
[1753362850863,1.60072366,118740.0,118730.0,0.2341823]
[1753362852670,1.60072366,118740.0,118730.0,0.2191323]
[1753362853061,1.60072366,118740.0,118730.0,0.2047523]
[1753362853768,1.62031424,118740.0,118730.0,0.1952123]
[1753362854164,1.60072366,118740.0,118730.0,0.1952123]
[1753362854370,1.62031424,118740.0,118730.0,0.1952123]
[1753362855169,1.60072366,118740.0,118730.0,0.1952123]
[1753362859672,1.24240853,118740.0,118730.0,0.2047523]
[1753362859875,1.60072366,118740.0,118730.0,0.2900323]
[1753362860777,1.60072366,118740.0,118730.0,0.2571523]
[1753362861377,1.60072366,118740.0,118730.0,0.2900323]
[1753362861574,1.60072366,118740.0,118730.0,0.2571523]
[1753362861970,1.60072366,118740.0,118730.0,0.2341823]
[1753362862279,1.96152366,118740.0,118730.0,0.2191323]
[1753362862481,1.96152366,118740.0,118730.0,0.2047523]
[1753362862972,1.96152366,118740.0,118730.0,0.2191323]
[1753362864671,1.96152366,118740.0,118730.0,0.2900323]
[1753362866777,1.96152366,118740.0,118730.0,0.2571523]
[1753362867278,1.96152366,118740.0,118730.0,0.2191323]
[1753362867485,1.96152366,118740.0,118730.0,0.02685]
[1753362867779,1.98110569,118740.0,118730.0,0.1703623]
[1753362868082,1.98110569,118740.0,118730.0,0.002]
[1753362868379,2.31983879,118740.0,118730.0,0.002]
[1753362868685,0.3367482,118730.0,118710.0,0.18216625]
[1753362868978,1.83320676,118720.0,118710.0,0.1915883]
[1753362869184,2.19320676,118720.0,118710.0,0.1915883]
[1753362869983,2.32003383,118720.0,118710.0,0.1915883]
[1753362870282,2.32003383,118720.0,118710.0,0.1945883]
[1753362870479,2.32003383,118720.0,118710.0,0.1955883]
[1753362870675,2.38674887,118720.0,118710.0,0.1955883]
[1753362871386,2.38674887,118720.0,118710.0,0.1945883]
[1753362871573,2.38674887,118720.0,118710.0,0.1955883]
[1753362871886,2.38674887,118720.0,118710.0,0.1723907]
[1753362872887,2.38674887,118720.0,118710.0,0.1956007]
[1753362875382,2.38674887,118720.0,118710.0,0.2099007]
[1753362878486,2.38674887,118720.0,118710.0,0.1956007]
[1753362881290,2.40639938,118720.0,118710.0,0.02721]
[1753362881586,2.38674887,118720.0,118710.0,0.004]
[1753362881984,2.38674887,118720.0,118690.0,0.26638645]
[1753362881985,0.1684048,118700.0,118690.0,0.26638645]
[1753362882188,1.83483993,118700.0,118690.0,0.26638645]
[1753362882388,1.83483993,118700.0,118690.0,0.2059222]
[1753362882588,1.83483993,118700.0,118690.0,0.2150922]
[1753362882883,1.83483993,118700.0,118690.0,0.02321]
[1753362883088,1.83483993,118700.0,118690.0,0.191629]
[1753362883280,1.83483993,118700.0,118690.0,0.194629]
[1753362883480,1.83483993,118700.0,118690.0,0.199629]
[1753362884888,1.96124162,118700.0,118690.0,0.199629]
[1753362886091,1.96124162,118700.0,118690.0,0.213929]
[1753362886390,1.96124162,118700.0,118690.0,0.223099]
[1753362886890,1.96124162,118700.0,118690.0,0.208799]
[1753362888098,1.96124162,118700.0,118690.0,0.223099]
[1753362889303,1.37392162,118700.0,118690.0,0.223099]
[1753362889499,1.96124162,118700.0,118690.0,0.260339]
[1753362889696,1.96124162,118700.0,118690.0,0.294549]
[1753362890901,1.37392162,118700.0,118690.0,0.294549]
[1753362891105,1.96124162,118700.0,118690.0,0.294549]
[1753362891903,1.37392162,118700.0,118690.0,0.294549]
[1753362892102,1.07368169,118700.0,118690.0,0.294549]
[1753362892307,1.24208659,118700.0,118690.0,0.294549]
[1753362892902,0.71368169,118700.0,118690.0,0.655349]
[1753362893101,0.92961453,118710.0,118690.0,0.655349]
[1753362893102,0.2104986,118710.0,118700.0,0.2865348]
[1753362893408,1.29479826,118710.0,118700.0,0.6473348]
[1753362893704,1.44261479,118710.0,118700.0,0.6473348]
[1753362893904,1.61100539,118710.0,118700.0,0.6473348]
[1753362894399,1.31559513,118710.0,118700.0,0.6473348]
[1753362894601,1.48398583,118710.0,118700.0,0.6473348]
[1753362894802,1.1256707,118710.0,118700.0,0.6473348]
[1753362895198,1.0856707,118710.0,118700.0,0.6473348]
[1753362895704,1.0856707,118710.0,118700.0,0.6513348]
[1753362896111,0.7956707,118710.0,118700.0,0.6513348]
[1753362896308,1.0856707,118710.0,118700.0,0.6513348]
[1753362896702,1.0656707,118710.0,118700.0,0.6513348]
[1753362897210,1.42398583,118710.0,118700.0,0.6513348]
[1753362897410,1.14398583,118710.0,118700.0,0.6513348]
[1753362898411,1.48398583,118710.0,118700.0,0.6513348]
[1753362899812,1.0656707,118710.0,118700.0,0.6513348]
[1753362900008,1.42398583,118710.0,118700.0,0.6513348]
[1753362901709,1.15398583,118710.0,118700.0,0.6513348]
[1753362901910,1.11398583,118710.0,118700.0,0.6513348]
[1753362902116,1.43398583,118710.0,118700.0,0.6513348]
[1753362903111,1.26559513,118710.0,118700.0,0.6513348]
[1753362903312,0.98559513,118710.0,118700.0,0.6513348]
[1753362903516,0.62728,118710.0,118700.0,0.6513348]
[1753362903815,0.93708,118710.0,118700.0,0.6513348]
[1753362904206,0.58708,118710.0,118700.0,0.6513348]
[1753362904403,0.66708,118710.0,118700.0,1.02836943]
[1753362904611,0.08,118710.0,118700.0,1.02836943]
[1753362904817,0.66708,118710.0,118700.0,1.02836943]
[1753362905314,0.58708,118710.0,118700.0,1.02836943]
[1753362905514,0.58708,118710.0,118700.0,1.08883368]
[1753362906917,0.56877783,118730.0,118720.0,0.2856065]
[1753362907119,1.53581783,118730.0,118720.0,0.6464065]
[1753362907419,1.66165807,118730.0,118720.0,0.6464065]
[1753362909216,1.66265807,118730.0,118720.0,0.6464065]
[1753362909617,1.66165807,118730.0,118720.0,0.6464065]
[1753362910014,1.66165807,118730.0,118720.0,0.2866065]
[1753362910816,1.66165807,118730.0,118720.0,0.2876065]
[1753362916824,1.30334294,118730.0,118720.0,0.2876065]
[1753362917224,1.66165807,118730.0,118720.0,0.2876065]
[1753362918829,1.53581783,118730.0,118720.0,0.6484065]
[1753362919031,1.53581783,118730.0,118720.0,0.2876065]
[1753362920931,1.53581783,118730.0,118720.0,0.6484065]
[1753362921232,1.53581783,118730.0,118720.0,0.2876065]
[1753362924331,1.53581783,118730.0,118720.0,0.2959991]
[1753362928038,0.90667743,118730.0,118720.0,0.31466228]
[1753362928229,0.5483623,118730.0,118720.0,0.67546228]
[1753362928430,1.1350023,118730.0,118720.0,0.67546228]
[1753362928735,0.38,118730.0,118720.0,0.67546228]
[1753362928933,0.38,118730.0,118720.0,1.03377741]
[1753362929136,0.1683481,118740.0,118730.0,0.3710778]
[1753362929434,1.0749481,118740.0,118730.0,0.7739672]
[1753362929633,1.0749481,118740.0,118730.0,0.7318778]
[1753362929935,1.0749481,118740.0,118730.0,0.3710778]
[1753362930238,1.0759481,118740.0,118730.0,0.7318778]
[1753362930434,1.43426323,118740.0,118730.0,0.7318778]
[1753362933039,1.43326323,118740.0,118730.0,0.7318778]
[1753362933243,1.0749481,118740.0,118730.0,0.7328778]
[1753362933433,0.67831513,118740.0,118730.0,0.7328778]
[1753362933638,0.90652,118740.0,118730.0,1.09119293]
[1753362933838,0.70652,118740.0,118730.0,1.09119293]
[1753362934237,0.70652,118740.0,118730.0,0.7338778]
[1753362934440,1.0948681,118740.0,118730.0,0.7338778]
[1753362934941,1.45318323,118740.0,118730.0,0.7338778]
[1753362935134,1.42318323,118740.0,118730.0,0.7338778]
[1753362940146,1.0648681,118740.0,118730.0,0.7338778]
[1753362940354,1.42318323,118740.0,118730.0,0.79434205]
[1753362941149,1.49318323,118740.0,118730.0,0.79434205]
[1753362942050,1.21318323,118740.0,118730.0,0.79434205]
[1753362942343,0.68652,118740.0,118730.0,1.15265718]
[1753362942541,0.68636,118740.0,118730.0,1.15265718]
[1753362943251,0.68636,118740.0,118730.0,1.09219293]
[1753362943452,0.68636,118740.0,118730.0,1.15265126]
[1753362943656,0.92636,118740.0,118730.0,0.79433613]
[1753362943848,0.92636,118740.0,118730.0,1.15265126]
[1753362944151,0.63636,118740.0,118730.0,1.15265126]
[1753362945947,1.77568713,118760.0,118750.0,0.2158339]
[1753362946147,2.74200713,118760.0,118750.0,0.2868739]
[1753362946347,2.86777824,118760.0,118750.0,0.2868739]
[1753362947053,2.86777824,118760.0,118750.0,0.6476739]
[1753362947453,2.78561594,118760.0,118750.0,0.6476739]
[1753362947654,2.78661594,118760.0,118750.0,0.6476739]
[1753362950659,2.66084483,118760.0,118750.0,0.6476739]
[1753362951162,1.49596483,118760.0,118750.0,0.6476739]
[1753362953164,1.1376497,118760.0,118750.0,0.6476739]
[1753362953364,0.96932,118760.0,118750.0,0.6476739]
[1753362953664,1.1376397,118760.0,118750.0,0.6476739]
[1753362954362,1.49595483,118760.0,118750.0,0.6476739]
[1753362956962,1.1376397,118760.0,118750.0,0.6476739]
[1753362957266,1.49595483,118760.0,118750.0,0.6476739]
[1753362959769,1.1376397,118760.0,118750.0,0.6476739]
[1753362960473,1.49595483,118760.0,118750.0,0.6476739]
[1753362961171,1.1376397,118760.0,118750.0,0.91575192]
[1753362961372,1.40571772,118760.0,118750.0,0.91575192]
[1753362961973,1.67379574,118760.0,118750.0,0.91575192]
[1753362962372,1.1376397,118760.0,118750.0,0.91575192]
[1753362962666,1.40571772,118760.0,118750.0,0.91575192]
[1753362962861,1.02711802,118760.0,118750.0,0.91575192]
[1753362963069,1.40543772,118760.0,118750.0,0.91575192]
[1753362964179,1.20543772,118760.0,118750.0,0.91575192]
[1753362965175,1.03711802,118760.0,118750.0,0.91575192]
[1753362965676,1.20543772,118760.0,118750.0,0.91575192]
[1753362967181,1.20543772,118760.0,118750.0,0.97621025]
[1753362967679,1.03711802,118760.0,118750.0,0.97621025]
[1753362967880,1.03707802,118760.0,118750.0,0.97621025]
[1753362968080,0.769,118760.0,118750.0,0.97621025]
[1753362968379,1.33539772,118760.0,118750.0,0.97621025]
[1753362971675,1.0673197,118760.0,118750.0,0.97621025]
[1753362971879,1.33539772,118760.0,118750.0,0.97621025]
[1753362972879,1.33539772,118760.0,118750.0,0.91575192]
[1753362974282,1.33539772,118760.0,118750.0,0.97621025]
[1753362975385,0.313,118760.0,118750.0,0.97621025]
[1753362975584,0.7963352,118780.0,118770.0,0.3282554]
[1753362975785,1.43397619,118780.0,118770.0,0.95713342]
[1753362975984,1.68249124,118780.0,118770.0,0.95713342]
[1753362976180,1.68249124,118780.0,118770.0,0.47869]
[1753362976388,1.68249124,118780.0,118770.0,0.6141855]
[1753362976389,1.70205062,118780.0,118770.0,0.6141855]
[1753362976784,1.70205062,118780.0,118770.0,0.6469955]
[1753362976980,1.68249124,118780.0,118770.0,0.6469955]
[1753362977781,1.68449124,118780.0,118770.0,0.6469955]
[1753362978089,1.68849124,118780.0,118770.0,0.6469955]
[1753362978279,1.68849124,118780.0,118770.0,0.65538613]
[1753362978481,1.68849124,118780.0,118770.0,0.92346415]
[1753362978686,1.42041322,118780.0,118770.0,0.92346415]
[1753362979188,1.68849124,118780.0,118770.0,0.92346415]
[1753362980691,1.21003802,118780.0,118770.0,0.92346415]
[1753362980993,1.37832942,118780.0,118770.0,0.92346415]
[1753362981179,1.09832942,118780.0,118770.0,0.92346415]
[1753362981376,1.38832942,118780.0,118770.0,0.92346415]
[1753362981789,1.22003802,118780.0,118770.0,0.92346415]
[1753362981991,1.38832942,118780.0,118770.0,0.92346415]
[1753362982184,1.10832942,118780.0,118770.0,0.92346415]
[1753362982690,1.34832942,118780.0,118770.0,0.92346415]
[1753362983298,1.34832942,118780.0,118770.0,0.65538613]
[1753362983486,1.61640744,118780.0,118770.0,0.65538613]
[1753362983793,1.34832942,118780.0,118770.0,0.92346415]
[1753362985092,1.34632942,118780.0,118770.0,0.92346415]
[1753362985282,1.34532942,118780.0,118770.0,0.92346415]
[1753362987190,1.02532942,118780.0,118770.0,0.92346415]
[1753362987785,1.34532942,118780.0,118770.0,0.92346415]
[1753362988185,1.02532942,118780.0,118770.0,0.92346415]
[1753362988386,0.7572514,118780.0,118770.0,0.92346415]
[1753362988587,1.35532942,118780.0,118770.0,0.65538613]
[1753362988795,1.35532942,118780.0,118770.0,0.92346415]
[1753362988986,1.35532942,118780.0,118770.0,0.65538613]
[1753362989185,1.35532942,118780.0,118770.0,0.92346415]
[1753362990596,1.0872514,118780.0,118770.0,0.92346415]
[1753362990781,1.35532942,118780.0,118770.0,0.92346415]
[1753362992989,1.35532942,118780.0,118770.0,0.65538613]
[1753362993190,1.35532942,118780.0,118770.0,0.92346415]
[1753362993692,1.35532942,118780.0,118770.0,0.39435865]
[1753362993898,1.35532942,118780.0,118770.0,0.56266415]
[1753362994392,1.35532942,118780.0,118770.0,0.92346415]
[1753362998397,1.35532942,118780.0,118770.0,0.65538613]
[1753362998590,1.35532942,118780.0,118770.0,0.92346415]
[1753362999994,1.0872514,118780.0,118770.0,0.92346415]
[1753363000299,1.35532942,118780.0,118770.0,0.92346415]
[1753363004502,1.35532942,118780.0,118770.0,0.98392248]
[1753363005905,0.003,118780.0,118770.0,0.98392248]
[1753363006107,0.58856,118780.0,118770.0,0.98392248]
[1753363006308,0.59856,118780.0,118770.0,0.98392248]
[1753363006514,0.86663802,118780.0,118770.0,0.98392248]
[1753363006807,1.03492942,118780.0,118770.0,0.98392248]
[1753363007206,0.59856,118780.0,118770.0,0.98392248]
[1753363008212,0.86663802,118780.0,118770.0,0.98392248]
[1753363008413,1.03492942,118780.0,118770.0,0.98392248]
[1753363008911,1.33492942,118780.0,118770.0,0.98392248]
[1753363010011,1.60300744,118780.0,118770.0,0.35504446]
[1753363010314,1.33492942,118780.0,118770.0,0.98392248]
[1753363010502,1.60300744,118780.0,118770.0,0.98392248]
[1753363010697,1.0668514,118780.0,118770.0,0.98392248]
[1753363010908,1.33492942,118780.0,118770.0,0.98392248]
[1753363012214,1.33492942,118780.0,118770.0,0.92346415]
[1753363012715,1.33492942,118780.0,118770.0,0.65538613]
[1753363012911,2.37800868,118780.0,118770.0,0.02335]
[1753363013208,0.1683197,118760.0,118750.0,0.06045833]
[1753363013412,2.26883376,118760.0,118750.0,0.06045833]
[1753363013714,2.39550137,118760.0,118750.0,0.06045833]
[1753363014413,2.12742335,118760.0,118750.0,0.06045833]
[1753363014818,2.12742335,118760.0,118750.0,0.08403833]
[1753363015112,1.95714027,118760.0,118750.0,0.08403833]
[1753363015717,1.94882002,118760.0,118750.0,0.1919139]
[1753363015920,1.94882002,118760.0,118750.0,0.02358]
[1753363016411,1.94882002,118760.0,118750.0,0.1919139]
[1753363016609,1.94882002,118760.0,118750.0,0.02358]
[1753363017114,1.95745467,118760.0,118750.0,0.02358]
[1753363017915,1.94882002,118760.0,118750.0,0.02458]
[1753363018820,2.30637273,118760.0,118750.0,0.02458]
[1753363019320,2.31490611,118760.0,118750.0,0.1929139]
[1753363019513,2.31490611,118760.0,118750.0,0.02458]
[1753363020219,1.00578731,118760.0,118750.0,0.1929139]
[1753363020420,1.94882002,118760.0,118750.0,0.1929139]
[1753363021424,1.95705547,118760.0,118750.0,0.02458]
[1753363022024,1.94882002,118760.0,118750.0,0.02458]
[1753363024620,1.95725043,118760.0,118750.0,0.02458]
[1753363025718,1.94882002,118760.0,118750.0,0.02458]
[1753363025924,2.30637273,118760.0,118750.0,0.02458]
[1753363026417,1.94882002,118760.0,118750.0,0.02458]
[1753363027124,1.59126731,118760.0,118750.0,0.02458]
[1753363027318,1.94882002,118760.0,118750.0,0.02458]
[1753363030928,1.95734833,118760.0,118750.0,0.02458]
[1753363031817,1.94882002,118760.0,118750.0,0.02458]
[1753363034721,1.95715337,118760.0,118750.0,0.02458]
[1753363034923,1.94882002,118760.0,118750.0,0.02458]
[1753363037229,2.12756837,118760.0,118750.0,0.03838]
[1753363037625,2.12756837,118760.0,118750.0,0.2067138]
[1753363037826,2.12756837,118760.0,118750.0,0.2163038]
[1753363038027,2.12756837,118760.0,118750.0,0.2489738]
[1753363038230,2.12756837,118760.0,118750.0,0.2648638]
[1753363038521,2.12748837,118760.0,118750.0,0.2648638]
[1753363038719,1.1037196,118760.0,118750.0,0.53301433]
[1753363038927,1.1137196,118760.0,118750.0,0.89381433]
[1753363039432,1.0637196,118760.0,118750.0,0.89381433]
[1753363039834,1.33187013,118760.0,118750.0,0.89381433]
[1753363041232,0.7537196,118760.0,118750.0,0.6256638]
[1753363041435,1.0737196,118760.0,118750.0,0.6256638]
[1753363042532,0.7537196,118760.0,118750.0,0.6256638]
[1753363042732,1.0837196,118760.0,118750.0,0.6478038]
[1753363043834,1.0837196,118760.0,118750.0,0.6488038]
[1753363044135,1.0837196,118760.0,118750.0,0.6498038]
[1753363044833,0.7537196,118760.0,118750.0,0.6498038]
[1753363045033,1.0637196,118760.0,118750.0,0.6498038]
[1753363045830,1.0637196,118760.0,118750.0,0.5695138]
[1753363045831,1.42113383,118760.0,118750.0,0.5695138]
[1753363046032,1.44144082,118760.0,118750.0,0.08264]
[1753363046231,1.44144082,118760.0,118750.0,0.2183038]
[1753363046433,1.44144082,118760.0,118750.0,0.04997]
[1753363046640,1.44144082,118760.0,118750.0,0.03617]
[1753363047032,1.79885505,118760.0,118750.0,0.02658]
[1753363047239,2.15965622,118760.0,118750.0,0.02658]
[1753363047439,1.80224199,118760.0,118750.0,0.02658]
[1753363047840,1.80212199,118760.0,118750.0,0.1949138]
[1753363048042,1.80212199,118760.0,118750.0,0.02658]
[1753363048445,1.21684199,118760.0,118750.0,0.1949138]
[1753363048646,1.80212199,118760.0,118750.0,0.1949138]
[1753363048837,1.80212199,118760.0,118750.0,0.2096938]
[1753363049040,1.78181383,118760.0,118750.0,0.04136]
[1753363049442,1.19653383,118760.0,118750.0,0.2096938]
[1753363049742,1.78181383,118760.0,118750.0,0.2195338]
[1753363050044,1.78177383,118760.0,118750.0,0.2195338]
[1753363052047,1.78177383,118760.0,118750.0,0.02658]
[1753363052253,2.13918806,118760.0,118750.0,0.003]
[1753363052452,2.15946585,118760.0,118750.0,0.003]
[1753363052849,2.28655101,118760.0,118750.0,0.003]
[1753363053458,0.1683338,118750.0,118740.0,0.3319977]
[1753363053756,0.85574803,118750.0,118740.0,0.2899108]
[1753363054258,0.85574803,118750.0,118740.0,0.2478239]
[1753363054460,1.21654803,118750.0,118740.0,0.02262]
[1753363054654,1.22517404,118750.0,118740.0,0.191968]
[1753363055356,1.21654803,118750.0,118740.0,0.191968]
[1753363055655,1.21654803,118750.0,118740.0,0.201808]
[1753363055856,1.21654803,118750.0,118740.0,0.218588]
[1753363056751,1.21654803,118750.0,118740.0,0.202808]
[1753363057046,1.21654803,118750.0,118740.0,0.200808]
[1753363058157,1.2248719,118750.0,118740.0,0.200808]
[1753363059052,1.2248719,118750.0,118740.0,0.190968]
[1753363059252,1.2248719,118750.0,118740.0,0.02262]
[1753363059559,1.21654803,118750.0,118740.0,0.1909671]
[1753363061255,1.21654803,118750.0,118740.0,0.2155871]
[1753363061657,0.85574803,118750.0,118740.0,0.2892171]
[1753363061864,0.4983338,118750.0,118740.0,0.2892171]
[1753363062162,0.7534538,118750.0,118740.0,1.00743133]
[1753363062364,1.1234533,118750.0,118740.0,1.00743133]
[1753363062564,0.7534533,118750.0,118740.0,0.6500171]
[1753363063156,1.1134533,118750.0,118740.0,0.6500171]
[1753363063362,1.1134533,118750.0,118740.0,0.6530171]
[1753363063765,1.1134533,118750.0,118740.0,0.6510171]
[1753363064063,1.1134533,118750.0,118740.0,0.6530171]
[1753363064268,0.7534533,118750.0,118740.0,0.6550171]
[1753363064460,0.58512,118750.0,118740.0,1.01243133]
[1753363064658,0.7534533,118750.0,118740.0,0.6550171]
[1753363065069,0.58512,118750.0,118740.0,0.6550171]
[1753363066062,0.7534533,118750.0,118740.0,0.6550171]
[1753363067272,0.58512,118750.0,118740.0,0.6550171]
[1753363068178,0.7534533,118750.0,118740.0,0.6550171]
[1753363071174,0.7534533,118750.0,118740.0,0.73058097]
[1753363071674,0.7534533,118750.0,118740.0,0.6550171]
[1753363074474,0.58512,118750.0,118740.0,0.6550171]
[1753363074773,0.58512,118750.0,118740.0,1.01243133]
[1753363075669,0.58512,118750.0,118740.0,0.6550171]
[1753363075870,0.58512,118750.0,118740.0,1.01243133]
[1753363076775,0.58512,118750.0,118740.0,0.6550171]
[1753363076964,1.0834533,118750.0,118740.0,0.6550171]
[1753363077167,0.7534533,118750.0,118740.0,0.6550171]
[1753363077982,0.58512,118750.0,118740.0,0.73058097]
[1753363078278,1.1234533,118750.0,118740.0,0.73058097]
[1753363078480,1.48086753,118750.0,118740.0,0.73058097]
[1753363078976,1.11086753,118750.0,118740.0,0.73058097]
[1753363079186,1.43086753,118750.0,118740.0,0.6550171]
[1753363080382,1.11086753,118750.0,118740.0,0.6550171]
[1753363080585,0.94253423,118750.0,118740.0,0.6550171]
[1753363080782,0.58512,118750.0,118740.0,0.6550171]
[1753363081375,0.52573333,118760.0,118750.0,0.2876733]
[1753363081575,1.45049333,118760.0,118750.0,0.2876733]
[1753363081872,1.0930791,118760.0,118750.0,0.2876733]
[1753363082075,1.45049333,118760.0,118750.0,0.2876733]
[1753363083382,1.45049333,118760.0,118750.0,0.2896733]
[1753363084387,1.45049333,118760.0,118750.0,0.2906733]
[1753363086388,1.0930791,118760.0,118750.0,0.2906733]
[1753363086580,1.45049333,118760.0,118750.0,0.2906733]
[1753363088489,1.0930791,118760.0,118750.0,0.2906733]
[1753363088690,1.45049333,118760.0,118750.0,0.2906733]
[1753363092286,1.47070138,118760.0,118750.0,0.2906733]
[1753363092591,1.45033333,118760.0,118750.0,0.2906733]
[1753363093989,1.18033333,118760.0,118750.0,0.2906733]
[1753363094289,1.46033333,118760.0,118750.0,0.2906733]
[1753363097188,1.6390826,118760.0,118750.0,0.55875505]
[1753363097390,1.6390826,118760.0,118750.0,0.2906733]
[1753363101187,1.1029191,118760.0,118750.0,0.2906733]
[1753363101394,1.6390826,118760.0,118750.0,0.2906733]
[1753363102488,1.6390826,118760.0,118750.0,0.2188633]
[1753363102689,1.6390826,118760.0,118750.0,0.2050133]
[1753363103194,1.6390826,118760.0,118750.0,0.2188633]
[1753363103596,1.1029191,118760.0,118750.0,0.2673933]
[1753363103785,1.6390826,118760.0,118750.0,0.2906733]
[1753363105197,1.46038404,118760.0,118750.0,0.2906733]
[1753363105994,1.48075917,118760.0,118750.0,0.2906733]
[1753363106392,1.04244007,118760.0,118750.0,0.2906733]
[1753363106597,0.56785854,118770.0,118760.0,0.2162691]
[1753363106791,1.57466935,118770.0,118760.0,0.6489991]
[1753363107102,1.70095785,118770.0,118760.0,0.6489991]
[1753363112403,1.68058404,118770.0,118760.0,0.6489991]
[1753363113014,1.0706485,118770.0,118760.0,0.6489991]
[1753363113315,1.1126649,118770.0,118760.0,0.6489991]
[1753363114406,1.47012984,118770.0,118760.0,0.6489991]
[1753363115914,1.47012984,118770.0,118760.0,0.5778091]
[1753363116114,1.1126649,118770.0,118760.0,0.5778091]
[1753363116312,1.47012984,118770.0,118760.0,0.5778091]
[1753363116512,1.47012984,118770.0,118760.0,0.6489991]
[1753363119214,1.47012984,118770.0,118760.0,0.11988]
[1753363119415,1.47012984,118770.0,118760.0,0.288199]